fUSD/lending_fUSD_20240921
["ID","MTS","AMOUNT","RATE_DAILY","PERIOD"]
[338840143,1726935070421,-500.0,0.0001452,2]
[338840144,1726935070430,-500.0,0.0001452,2]
[338840145,1726935070439,-500.8525494,0.0001452,2]
[338840146,1726935070448,-564.29503589,0.0001452,2]
[338840147,1726935070458,-167.41296207,0.0001452,2]
[338840148,1726935070468,-377.64634313,0.0001452,2]
[338840149,1726935070478,-500.0,0.0001452,2]
[338840150,1726935070487,-601.58745378,0.0001452,2]
[338840151,1726935070497,-502.7831302,0.0001452,2]
[338840152,1726935070508,-500.0,0.0001452,2]
[338840153,1726935070517,-356.64722722,0.0001452,2]
[338840154,1726935070527,-500.0,0.0001452,2]
[338840155,1726935070539,-500.81332306,0.0001452,2]
[338840156,1726935070548,-500.0,0.0001452,2]
[338840157,1726935070558,-500.0,0.0001452,2]
[338840158,1726935070568,-500.0,0.0001452,2]
[338840159,1726935070578,-500.0,0.0001452,2]
[338840160,1726935070587,-500.0,0.0001452,2]
[338840161,1726935070597,-500.0,0.0001452,2]
[338840162,1726935070607,-500.52769532,0.0001452,2]
[338840163,1726935070617,-500.0,0.0001452,2]
[338840164,1726935070627,-500.0,0.0001452,2]
[338840165,1726935070636,-500.0,0.0001452,2]
[338840166,1726935070646,-500.0,0.0001452,2]
[338840167,1726935070656,-500.0,0.0001452,2]
[338840168,1726935070665,-635.26569213,0.0001452,2]
[338840169,1726935070674,-500.0,0.0001452,2]
[338840170,1726935070685,-500.0,0.0001452,2]
[338840171,1726935070695,-222.78377892,0.0001452,2]
[338840172,1726935070704,-221.41807209,0.0001452,2]
[338840173,1726935070714,-500.77919154,0.0001452,2]
[338840174,1726935070723,-500.0,0.0001452,2]
[338840175,1726935070733,-500.0,0.0001452,2]
[338840176,1726935070743,-500.0,0.0001452,2]
[338840177,1726935070752,-500.0,0.0001452,2]
[338840178,1726935070763,-499.22002796,0.0001452,2]
[338840179,1726935070773,-500.0,0.0001452,2]
[338840180,1726935070782,-500.0,0.0001452,2]
[338840181,1726935070791,-500.0,0.0001452,2]
[338840182,1726935070801,-500.0,0.0001452,2]
[338840183,1726935070811,-500.0,0.0001452,2]
[338840184,1726935070820,-500.0,0.0001452,2]
[338840185,1726935070830,-500.0,0.0001452,2]
[338840186,1726935070840,-500.0,0.0001452,2]
[338840187,1726935070849,-360.94173049,0.0001452,2]
[338840188,1726935070859,-206.13712452,0.0001452,2]
[338840189,1726935070868,-500.0,0.0001452,2]
[338840190,1726935070878,-500.0,0.0001452,2]
[338840191,1726935070888,-500.0,0.0001452,2]
[338840192,1726935070897,-500.0,0.0001452,2]
[338840193,1726935070906,-500.0,0.0001452,2]
[338840194,1726935070915,-500.0,0.0001452,2]
[338840195,1726935070924,-500.0,0.0001452,2]
[338840196,1726935070934,-606.11055671,0.0001452,2]
[338840197,1726935070943,-500.0,0.0001452,2]
[338840198,1726935070953,-500.0,0.0001452,2]
[338840199,1726935070963,-211.18054239,0.0001452,2]
[338840200,1726935070973,-500.0,0.0001452,2]
[338840201,1726935070983,-500.5003662,0.0001452,2]
[338840202,1726935070992,-500.0,0.0001452,2]
[338840203,1726935071002,-500.0,0.0001452,2]
[338840204,1726935071011,-500.0,0.0001452,2]
[338840205,1726935071020,-500.0,0.0001452,2]
[338840206,1726935071030,-500.0,0.0001452,2]
[338840207,1726935071039,-500.0,0.0001452,2]
[338840208,1726935071048,-500.0,0.0001452,2]
[338840209,1726935071061,-224.05304223,0.0001452,2]
[338840210,1726935071070,-500.0,0.0001452,2]
[338840211,1726935071080,-500.0,0.0001452,2]
[338840212,1726935071089,-500.0,0.0001452,2]
[338840213,1726935071099,-500.0,0.0001452,2]
[338840214,1726935071108,-169.06040603,0.0001452,2]
[338840215,1726935071118,-498.42512857,0.0001452,2]
[338840216,1726935071127,-500.0,0.0001452,2]
[338840217,1726935071136,-500.0,0.0001452,2]
[338840218,1726935071146,-500.0,0.0001452,2]
[338840219,1726935071155,-500.0,0.0001452,2]
[338840220,1726935071164,-500.0,0.0001452,2]
[338840221,1726935071173,-230.24132656,0.0001452,2]
[338840222,1726935071182,-500.0,0.0001452,2]
[338840223,1726935071191,-500.0,0.0001452,2]
[338840224,1726935071200,-500.0,0.0001452,2]
[338840225,1726935071209,-500.0,0.0001452,2]
[338840226,1726935071218,-165.104328,0.0001452,2]
[338840227,1726935071227,-500.7256434,0.0001452,2]
[338840228,1726935071237,-500.0,0.0001452,2]
[338840229,1726935071245,-500.0,0.0001452,2]
[338840230,1726935071254,-500.33300198,0.0001452,2]
[338840231,1726935071264,-500.0,0.0001452,2]
[338840232,1726935071273,-500.0,0.0001452,2]
[338840233,1726935071282,-500.0,0.0001452,2]
[338840234,1726935071291,-500.0,0.0001452,2]
[338840235,1726935071300,-500.0,0.0001452,2]
[338840236,1726935071312,-270.13504409,0.0001452,2]
[338840237,1726935071321,-500.0,0.0001452,2]
[338840238,1726935071330,-500.0,0.0001452,2]
[338840239,1726935071339,-500.0,0.0001452,2]
[338840240,1726935071348,-500.0,0.0001452,2]
[338840241,1726935071357,-500.0,0.0001452,2]
[338840242,1726935071366,-500.0,0.0001452,2]
[338840243,1726935071375,-500.0,0.0001452,2]
[338840244,1726935071384,-500.0,0.0001452,2]
[338840245,1726935071394,-500.0,0.0001452,2]
[338840246,1726935071403,-249.46994291,0.0001452,2]
[338840247,1726935071412,-500.0,0.0001452,2]
[338840248,1726935071422,-606.82802305,0.0001452,2]
[338840249,1726935071431,-192.64901124,0.0001452,2]
[338840250,1726935071440,-187.0553,0.0001452,2]
[338840251,1726935071449,-500.0,0.0001452,2]
[338840252,1726935071458,-174.59014308,0.0001452,2]
[338840253,1726935071467,-500.0,0.0001452,2]
[338840254,1726935071476,-500.0,0.0001452,2]
[338840255,1726935071485,-500.0,0.0001452,2]
[338840256,1726935071494,-501.29581394,0.0001452,2]
[338840257,1726935071503,-201.7482527,0.0001452,2]
[338840258,1726935071512,-500.0,0.0001452,2]
[338840259,1726935071521,-500.0,0.0001452,2]
[338840260,1726935071530,-500.0,0.0001452,2]
[338840261,1726935071539,-500.0,0.0001452,2]
[338840262,1726935071548,-500.0,0.0001452,2]
[338840263,1726935071557,-500.0,0.0001452,2]
[338840264,1726935071566,-447.36845286,0.0001452,2]
[338840265,1726935071575,-500.0,0.0001452,2]
[338840266,1726935071584,-501.34086911,0.0001452,2]
[338840267,1726935071593,-500.0,0.0001452,2]
[338840268,1726935071602,-338.26393924,0.0001452,2]
[338840269,1726935071611,-501.18284853,0.0001452,2]
[338840270,1726935071620,-500.32547585,0.0001452,2]
[338840271,1726935071629,-500.0,0.0001452,2]
[338840272,1726935071638,-500.0,0.0001452,2]
[338840273,1726935071647,-505.57129659,0.0001452,2]
[338840274,1726935071657,-500.0,0.0001452,2]
[338840275,1726935071667,-500.0,0.0001452,2]
[338840276,1726935071678,-500.0,0.0001452,2]
[338840277,1726935071690,-500.0,0.0001452,2]
[338840278,1726935071700,-500.0,0.0001452,2]
[338840279,1726935071710,-440.84273551,0.0001452,2]
[338840280,1726935071719,-500.0,0.0001452,2]
[338840281,1726935071730,-500.0,0.0001452,2]
[338840282,1726935071739,-500.5056275,0.0001452,2]
[338840283,1726935071748,-500.5174227,0.0001452,2]
[338840284,1726935071759,-500.0,0.0001452,2]
[338840285,1726935071768,-502.07776673,0.0001452,2]
[338840286,1726935071777,-303.69,0.0001452,2]
[338840287,1726935071787,-500.0,0.0001452,2]
[338840288,1726935071796,-500.0,0.0001452,2]
[338840289,1726935071805,-500.0,0.0001452,2]
[338840290,1726935071815,-500.0,0.0001452,2]
[338840291,1726935071824,-500.0,0.0001452,2]
[338840292,1726935071833,-597.5955308,0.0001452,2]
[338840293,1726935071843,-500.0,0.0001452,2]
[338840294,1726935071852,-500.0,0.0001452,2]
[338840295,1726935071862,-500.0,0.0001452,2]
[338840296,1726935071871,-500.0,0.0001452,2]
[338840297,1726935071880,-201.37337578,0.0001452,2]
[338840298,1726935071890,-500.0,0.0001452,2]
[338840299,1726935071899,-500.48870749,0.0001452,2]
[338840300,1726935071908,-500.0,0.0001452,2]
[338840301,1726935071917,-500.0,0.0001452,2]
[338840302,1726935071926,-500.0,0.0001452,2]
[338840303,1726935071935,-270.64501669,0.0001452,2]
[338840304,1726935071945,-500.0,0.0001452,2]
[338840305,1726935071955,-500.0,0.0001452,2]
[338840306,1726935071964,-500.0,0.0001452,2]
[338840307,1726935071974,-500.61846227,0.0001452,2]
[338840308,1726935071983,-486.16262292,0.0001452,2]
[338840309,1726935071992,-188.7129,0.0001452,2]
[338840310,1726935072002,-503.06066946,0.0001452,2]
[338840311,1726935072011,-500.0,0.0001452,2]
[338840312,1726935072020,-500.0,0.0001452,2]
[338840313,1726935072029,-500.0,0.0001452,2]
[338840314,1726935072039,-500.0,0.0001452,2]
[338840315,1726935072049,-500.0,0.0001452,2]
[338840316,1726935072059,-236.69566994,0.0001452,2]
[338840317,1726935072067,-198.92700207,0.0001452,2]
[338840318,1726935072077,-504.77787711,0.0001452,2]
[338840319,1726935072086,-500.0,0.0001452,2]
[338840320,1726935072096,-500.0,0.0001452,2]
[338840321,1726935072105,-453.1,0.0001452,2]
[338840322,1726935072114,-500.0,0.0001452,2]
[338840323,1726935072123,-500.0,0.0001452,2]
[338840324,1726935072132,-500.0,0.0001452,2]
[338840325,1726935072282,-500.85493843,0.0001452,2]
[338840326,1726935072292,-501.92714466,0.0001452,2]
[338840327,1726935072302,-644.78010975,0.0001452,2]
[338840328,1726935072322,-500.52846128,0.0001452,2]
[338840329,1726935072331,-499.38662853,0.0001452,2]
[338840330,1726935072340,-500.0,0.0001452,2]
[338840331,1726935072349,-503.56523072,0.0001452,2]
[338840332,1726935072358,-500.0,0.0001452,2]
[338840333,1726935072367,-500.77412287,0.0001452,2]
[338840334,1726935072376,-167.20564862,0.0001452,2]
[338840335,1726935072385,-500.0,0.0001452,2]
[338840336,1726935072394,-500.0,0.0001452,2]
[338840337,1726935072403,-214.75201729,0.0001452,2]
[338840338,1726935072413,-501.3374234,0.0001452,2]
[338840339,1726935072422,-537.87,0.0001452,2]
[338840340,1726935072431,-500.0,0.0001452,2]
[338840341,1726935072440,-500.0,0.0001452,2]
[338840342,1726935072449,-500.0,0.0001452,2]
[338840343,1726935072458,-501.14017243,0.0001452,2]
[338840344,1726935072467,-613.97,0.0001452,2]
[338840345,1726935072476,-500.0,0.0001452,2]
[338840346,1726935072486,-500.84475195,0.0001452,2]
[338840347,1726935072494,-500.0,0.0001452,2]
[338840348,1726935072503,-500.0,0.0001452,2]
[338840349,1726935072512,-341.53652966,0.0001452,2]
[338840350,1726935072521,-500.0,0.0001452,2]
[338840351,1726935072531,-500.0,0.0001452,2]
[338840352,1726935072540,-205.1042875,0.0001452,2]
[338840353,1726935072549,-500.4867609,0.0001452,2]
[338840354,1726935072558,-530.91407257,0.0001452,2]
[338840355,1726935072567,-500.0,0.0001452,2]
[338840356,1726935072577,-153.50410234,0.0001452,2]
[338840357,1726935072586,-649.05278794,0.0001452,2]
[338840358,1726935072595,-502.08133564,0.0001452,2]
[338840359,1726935072604,-639.6574497,0.0001452,2]
[338840360,1726935072613,-500.84176697,0.0001452,2]
[338840361,1726935072623,-500.0,0.0001452,2]
[338840362,1726935072632,-500.0,0.0001452,2]
[338840363,1726935072642,-500.0,0.0001452,2]
[338840364,1726935072651,-460.73676547,0.0001452,2]
[338840365,1726935072660,-500.50072469,0.0001452,2]
[338840366,1726935072668,-501.26917997,0.0001452,2]
[338840367,1726935072677,-500.0,0.0001452,2]
[338840368,1726935072689,-322.56769143,0.0001452,2]
[338840369,1726935072699,-500.0,0.0001452,2]
[338840370,1726935072708,-500.48989094,0.0001452,2]
[338840371,1726935072717,-548.41097855,0.0001452,2]
[338840372,1726935072727,-500.0,0.0001452,2]
[338840373,1726935072736,-500.58118684,0.0001452,2]
[338840374,1726935072746,-500.56556109,0.0001452,2]
[338840375,1726935072755,-641.42541503,0.0001452,2]
[338840376,1726935072765,-229.99126004,0.0001452,2]
[338840377,1726935072775,-500.0,0.0001452,2]
[338840378,1726935072784,-500.0,0.0001452,2]
[338840379,1726935072793,-500.0,0.0001452,2]
[338840380,1726935072802,-195.26,0.0001452,2]
[338840381,1726935072815,-483.9,0.0001452,2]
[338840382,1726935072824,-500.0,0.0001452,2]
[338840383,1726935072833,-500.66190235,0.0001452,2]
[338840384,1726935072843,-500.0,0.0001452,2]
[338840385,1726935072852,-500.0,0.0001452,2]
[338840386,1726935072861,-500.59192826,0.0001452,2]
[338840387,1726935072870,-500.0,0.0001452,2]
[338840388,1726935072880,-500.0,0.0001452,2]
[338840389,1726935072889,-500.0,0.0001452,2]
[338840390,1726935072899,-188.7069368,0.0001452,2]
[338840391,1726935072908,-500.0,0.0001452,2]
[338840392,1726935072917,-484.26962583,0.0001452,2]
[338840393,1726935072926,-500.0,0.0001452,2]
[338840394,1726935072936,-500.0,0.0001452,2]
[338840395,1726935072945,-500.0,0.0001452,2]
[338840396,1726935072954,-500.0,0.0001452,2]
[338840397,1726935072964,-500.0,0.0001452,2]
[338840398,1726935072973,-500.0,0.0001452,2]
[338840399,1726935072981,-371.62,0.0001452,2]
[338840400,1726935072990,-583.56,0.0001452,2]
[338840401,1726935072999,-500.0,0.0001452,2]
[338840402,1726935073008,-385.01,0.0001452,2]
[338840403,1726935073017,-500.0,0.0001452,2]
[338840404,1726935073026,-179.09,0.0001452,2]
[338840405,1726935073034,-438.69144377,0.0001452,2]
[338840406,1726935073043,-500.0,0.0001452,2]
[338840407,1726935073052,-500.0,0.0001452,2]
[338840408,1726935073062,-500.0,0.0001452,2]
[338840409,1726935073070,-500.0,0.0001452,2]
[338840410,1726935073079,-500.0,0.0001452,2]
[338840411,1726935073088,-500.0,0.0001452,2]
[338840412,1726935073097,-500.0,0.0001452,2]
[338840413,1726935073106,-500.0,0.0001452,2]
[338840414,1726935073115,-500.0,0.0001452,2]
[338840415,1726935073124,-500.0,0.0001452,2]
[338840416,1726935073134,-500.0,0.0001452,2]
[338840417,1726935073143,-500.0,0.0001452,2]
[338840418,1726935073152,-399.44094571,0.0001452,2]
[338840419,1726935073161,-500.0,0.0001452,2]
[338840420,1726935073170,-673.854882,0.0001452,2]
[338840421,1726935073180,-500.0,0.0001452,2]
[338840422,1726935073191,-500.0,0.0001452,2]
[338840423,1726935073201,-566.08,0.0001452,2]
[338840424,1726935073212,-500.0,0.0001452,2]
[338840425,1726935073223,-500.0,0.0001452,2]
[338840426,1726935073233,-500.0,0.0001452,2]
[338840427,1726935073243,-500.0,0.0001452,2]
[338840428,1726935073254,-500.0,0.0001452,2]
[338840429,1726935073264,-500.0,0.0001452,2]
[338840430,1726935073276,-500.0,0.0001452,2]
[338840431,1726935073286,-500.0,0.0001452,2]
[338840432,1726935073297,-509.73,0.0001452,2]
[338840433,1726935073308,-500.0,0.0001452,2]
[338840434,1726935073317,-500.0,0.0001452,2]
[338840435,1726935073326,-500.0,0.0001452,2]
[338840436,1726935073336,-500.0,0.0001452,2]
[338840437,1726935073345,-500.0,0.0001452,2]
[338840438,1726935073354,-500.0,0.0001452,2]
[338840439,1726935073364,-500.0,0.0001452,2]
[338840440,1726935073374,-500.0,0.0001452,2]
[338840441,1726935073383,-604.63,0.0001452,2]
[338840442,1726935073393,-500.0,0.0001452,2]
[338840443,1726935073402,-500.0,0.0001452,2]
[338840444,1726935073412,-500.0,0.0001452,2]
[338840445,1726935073421,-500.0,0.0001452,2]
[338840446,1726935073431,-475.78,0.0001452,2]
[338840447,1726935073441,-310.6088334,0.0001452,2]
[338840448,1726935073450,-532.68,0.0001452,2]
[338840449,1726935073460,-500.0,0.0001452,2]
[338840450,1726935073469,-500.0,0.0001452,2]
[338840451,1726935073478,-500.0,0.0001452,2]
[338840452,1726935073487,-500.0,0.0001452,2]
[338840453,1726935073497,-595.2700351,0.0001452,2]
[338840454,1726935073506,-500.0,0.0001452,2]
[338840455,1726935073516,-500.0,0.0001452,2]
[338840456,1726935073525,-500.0,0.0001452,2]
[338840457,1726935073535,-500.0,0.0001452,2]
[338840458,1726935073544,-500.0,0.0001452,2]
[338840459,1726935073555,-500.0,0.0001452,2]
[338840460,1726935073564,-500.0,0.0001452,2]
[338840461,1726935073573,-233.83,0.0001452,2]
[338840462,1726935073583,-500.0,0.0001452,2]
[338840463,1726935073592,-235.15,0.0001452,2]
[338840464,1726935073601,-331.13,0.0001452,2]
[338840465,1726935073610,-500.0,0.0001452,2]
[338840466,1726935073620,-500.0,0.0001452,2]
[338840467,1726935073629,-500.0,0.0001452,2]
[338840468,1726935073639,-500.0,0.0001452,2]
[338840469,1726935073648,-323.77,0.0001452,2]
[338840470,1726935073658,-298.72671113,0.0001452,2]
[338840471,1726935073667,-500.0,0.0001452,2]
[338840472,1726935073677,-200.08589711,0.0001452,2]
[338840473,1726935073688,-500.0,0.0001452,2]
[338840474,1726935073698,-151.0,0.0001452,2]
[338840475,1726935073707,-151.0,0.0001452,2]
[338840476,1726935073717,-500.0,0.0001452,2]
[338840477,1726935073726,-500.0,0.0001452,2]
[338840478,1726935073735,-267.53,0.0001452,2]
[338840479,1726935073745,-340.13694868,0.0001452,2]
[338840480,1726935073754,-500.0,0.0001452,2]
[338840481,1726935073765,-500.0,0.0001452,2]
[338840482,1726935073774,-500.0,0.0001452,2]
[338840483,1726935073783,-500.0,0.0001452,2]
[338840484,1726935073795,-500.0,0.0001452,2]
[338840485,1726935073805,-500.0,0.0001452,2]
[338840486,1726935073815,-500.0,0.0001452,2]
[338840487,1726935073824,-500.0,0.0001452,2]
[338840488,1726935073833,-500.0,0.0001452,2]
[338840489,1726935073842,-344.3,0.0001452,2]
[338840490,1726935073852,-374.96,0.0001452,2]
[338840491,1726935073862,-500.0,0.0001452,2]
[338840492,1726935073872,-500.0,0.0001452,2]
[338840493,1726935073883,-278.47,0.0001452,2]
[338840494,1726935073893,-500.0,0.0001452,2]
[338840495,1726935073904,-500.0,0.0001452,2]
[338840496,1726935073914,-500.0,0.0001452,2]
[338840497,1726935073925,-500.0,0.0001452,2]
[338840498,1726935073935,-500.0,0.0001452,2]
[338840499,1726935073945,-500.0,0.0001452,2]
[338840500,1726935073954,-500.0,0.0001452,2]
[338840501,1726935073964,-500.0,0.0001452,2]
[338840502,1726935073975,-500.0,0.0001452,2]
[338840503,1726935073985,-642.12,0.0001452,2]
[338840504,1726935073995,-151.0,0.0001452,2]
[338840505,1726935074005,-151.0,0.0001452,2]
[338840506,1726935074015,-500.0,0.0001452,2]
[338840507,1726935074024,-155.42,0.0001452,2]
[338840508,1726935074034,-212.15662031,0.0001452,2]
[338840509,1726935074044,-500.0,0.0001452,2]
[338840510,1726935074053,-500.0,0.0001452,2]
[338840511,1726935074063,-500.0,0.0001452,2]
[338840512,1726935074072,-493.55,0.0001452,2]
[338840513,1726935074081,-500.0,0.0001452,2]
[338840514,1726935074091,-551.76,0.0001452,2]
[338840515,1726935074101,-500.0,0.0001452,2]
[338840516,1726935074111,-500.0,0.0001452,2]
[338840517,1726935074121,-500.0,0.0001452,2]
[338840518,1726935074130,-500.0,0.0001452,2]
[338840519,1726935074140,-330.80277815,0.0001452,2]
[338840520,1726935074149,-500.0,0.0001452,2]
[338840521,1726935074159,-500.0,0.0001452,2]
[338840522,1726935074168,-500.0,0.0001452,2]
[338840523,1726935074178,-389.07238854,0.0001452,2]
[338840524,1726935074188,-500.0,0.0001452,2]
[338840525,1726935074197,-500.0,0.0001452,2]
[338840526,1726935074207,-500.0,0.0001452,2]
[338840527,1726935074216,-500.0,0.0001452,2]
[338840528,1726935074226,-640.78,0.0001452,2]
[338840529,1726935074235,-500.0,0.0001452,2]
[338840530,1726935074245,-500.0,0.0001452,2]
[338840531,1726935074254,-500.0,0.0001452,2]
[338840532,1726935074263,-210.70874266,0.0001452,2]
[338840533,1726935074272,-151.0,0.0001452,2]
[338840534,1726935074282,-151.0,0.0001452,2]
[338840535,1726935074291,-238.25910127,0.0001452,2]
[338840536,1726935074300,-500.0,0.0001452,2]
[338840537,1726935074310,-519.22,0.0001452,2]
[338840538,1726935074319,-500.0,0.0001452,2]
[338840539,1726935074329,-500.0,0.0001452,2]
[338840540,1726935074339,-500.0,0.0001452,2]
[338840541,1726935074348,-500.0,0.0001452,2]
[338840542,1726935074358,-500.0,0.0001452,2]
[338840543,1726935074367,-500.0,0.0001452,2]
[338840544,1726935074377,-345.18,0.0001452,2]
[338840545,1726935074387,-500.0,0.0001452,2]
[338840546,1726935074397,-500.0,0.0001452,2]
[338840547,1726935074408,-240.89729163,0.0001452,2]
[338840548,1726935074417,-471.32143384,0.0001452,2]
[338840549,1726935074429,-500.0,0.0001452,2]
[338840550,1726935074440,-500.0,0.0001452,2]
[338840551,1726935074450,-500.0,0.0001452,2]
[338840552,1726935074461,-500.0,0.0001452,2]
[338840553,1726935074472,-500.0,0.0001452,2]
[338840554,1726935074483,-498.5,0.0001452,2]
[338840555,1726935074494,-500.0,0.0001452,2]
[338840556,1726935074503,-268.79,0.0001452,2]
[338840557,1726935074513,-500.0,0.0001452,2]
[338840558,1726935074522,-500.0,0.0001452,2]
[338840559,1726935074532,-500.0,0.0001452,2]
[338840560,1726935074541,-511.93,0.0001452,2]
[338840561,1726935074551,-500.0,0.0001452,2]
[338840562,1726935074561,-500.0,0.0001452,2]
[338840563,1726935074572,-500.0,0.0001452,2]
[338840564,1726935074581,-500.0,0.0001452,2]
[338840565,1726935074590,-500.0,0.0001452,2]
[338840566,1726935074600,-500.0,0.0001452,2]
[338840567,1726935074608,-500.0,0.0001452,2]
[338840568,1726935074618,-500.0,0.0001452,2]
[338840569,1726935074627,-500.0,0.0001452,2]
[338840570,1726935074636,-306.66789335,0.0001452,2]
[338840571,1726935074645,-500.0,0.0001452,2]
[338840572,1726935074654,-208.62,0.0001452,2]
[338840573,1726935074664,-500.0,0.0001452,2]
[338840574,1726935074673,-486.06715504,0.0001452,2]
[338840575,1726935074684,-151.0,0.0001452,2]
[338840576,1726935074695,-151.0,0.0001452,2]
[338840577,1726935074704,-500.0,0.0001452,2]
[338840578,1726935074713,-500.0,0.0001452,2]
[338840579,1726935074723,-500.0,0.0001452,2]
[338840580,1726935074733,-500.0,0.0001452,2]
[338840581,1726935074742,-455.43,0.0001452,2]
[338840582,1726935074751,-500.0,0.0001452,2]
[338840583,1726935074761,-500.0,0.0001452,2]
[338840584,1726935074770,-500.0,0.0001452,2]
[338840585,1726935074779,-500.0,0.0001452,2]
[338840586,1726935074789,-259.63,0.0001452,2]
[338840587,1726935074798,-500.0,0.0001452,2]
[338840588,1726935074807,-500.0,0.0001452,2]
[338840589,1726935074816,-500.0,0.0001452,2]
[338840590,1726935074825,-427.55913653,0.0001452,2]
[338840591,1726935074834,-500.0,0.0001452,2]
[338840592,1726935074844,-500.0,0.0001452,2]
[338840593,1726935074853,-544.80020251,0.0001452,2]
[338840594,1726935074862,-643.23041889,0.0001452,2]
[338840595,1726935074871,-219.77296276,0.0001452,2]
[338840596,1726935074880,-591.92500001,0.0001452,2]
[338840597,1726935074889,-500.0,0.0001452,2]
[338840598,1726935074898,-500.0,0.0001452,2]
[338840599,1726935074907,-500.0,0.0001452,2]
[338840600,1726935074916,-500.0,0.0001452,2]
[338840601,1726935074925,-500.0,0.0001452,2]
[338840602,1726935074935,-500.99456045,0.0001452,2]
[338840603,1726935074944,-561.74726581,0.0001452,2]
[338840604,1726935074953,-500.0,0.0001452,2]
[338840605,1726935074963,-500.0,0.0001452,2]
[338840606,1726935074972,-500.0,0.0001452,2]
[338840607,1726935074981,-500.0,0.0001452,2]
[338840608,1726935075125,-500.0,0.0001452,2]
[338840609,1726935075135,-500.0,0.0001452,2]
[338840610,1726935075148,-500.0,0.0001452,2]
[338840611,1726935075160,-526.14205678,0.0001452,2]
[338840612,1726935075171,-624.76479055,0.0001452,2]
[338840613,1726935075183,-500.0,0.0001452,2]
[338840614,1726935075194,-500.0,0.0001452,2]
[338840615,1726935075205,-500.0,0.0001452,2]
[338840616,1726935075215,-500.0,0.0001452,2]
[338840617,1726935075224,-500.0,0.0001452,2]
[338840618,1726935075236,-517.36372764,0.0001452,2]
[338840619,1726935075246,-500.0,0.0001452,2]
[338840620,1726935075257,-500.0,0.0001452,2]
[338840621,1726935075266,-500.0,0.0001452,2]
[338840622,1726935075276,-500.0,0.0001452,2]
[338840623,1726935075285,-500.0,0.0001452,2]
[338840624,1726935075295,-500.0,0.0001452,2]
[338840625,1726935075304,-534.65,0.0001452,2]
[338840626,1726935075313,-500.0,0.0001452,2]
[338840627,1726935075322,-500.0,0.0001452,2]
[338840628,1726935075331,-500.0,0.0001452,2]
[338840629,1726935075340,-500.0,0.0001452,2]
[338840630,1726935075349,-500.0,0.0001452,2]
[338840631,1726935075358,-500.0,0.0001452,2]
[338840632,1726935075367,-188.59155717,0.0001452,2]
[338840633,1726935075376,-500.0,0.0001452,2]
[338840634,1726935075386,-551.86375882,0.0001452,2]
[338840635,1726935075397,-500.0,0.0001452,2]
[338840636,1726935075409,-500.0,0.0001452,2]
[338840637,1726935075418,-500.0,0.0001452,2]
[338840638,1726935075429,-500.0,0.0001452,2]
[338840639,1726935075439,-500.0,0.0001452,2]
[338840640,1726935075450,-500.0,0.0001452,2]
[338840641,1726935075461,-500.0,0.0001452,2]
[338840642,1726935075472,-544.77674073,0.0001452,2]